[Event "*** Titled Tuesday Blitz"]
[Site "Chess.com"]
[Date "2020.05.19"]
[Round "3"]
[White "Sibelephant"]
[Black "CarlosAlbornoz"]
[Result "1-0"]
[WhiteElo "3180"]
[BlackElo "2677"]
[TimeControl "180+1"]
[EndTime "12:28:54 PDT"]
[Termination "Sibelephant won by resignation"]

1. c4 {[%clk 0:03:00.2]} 1... Nf6 {[%clk 0:03:00]} 2. g3 {[%clk 0:02:59.9]} 2...
e6 {[%clk 0:03:00.1]} 3. Bg2 {[%clk 0:02:59.7]} 3... d5 {[%clk 0:03:00.5]} 4.
Nf3 {[%clk 0:03:00.3]} 4... Be7 {[%clk 0:03:00.5]} 5. O-O {[%clk 0:02:59.7]}
5... O-O {[%clk 0:03:00.3]} 6. cxd5 {[%clk 0:03:00.1]} 6... exd5 {[%clk
0:03:00.1]} 7. b3 {[%clk 0:03:00.8]} 7... c6 {[%clk 0:02:57]} 8. Bb2 {[%clk
0:03:01]} 8... a5 {[%clk 0:02:57.3]} 9. a3 {[%clk 0:02:55.1]} 9... h6 {[%clk
0:02:56.9]} 10. d3 {[%clk 0:02:54.8]} 10... Bf5 {[%clk 0:02:55.2]} 11. Nbd2
{[%clk 0:02:55]} 11... Nbd7 {[%clk 0:02:54]} 12. Re1 {[%clk 0:02:47.5]} 12...
Bh7 {[%clk 0:02:52.3]} 13. Qc2 {[%clk 0:02:44.7]} 13... Re8 {[%clk 0:02:50.9]}
14. Rac1 {[%clk 0:02:38.8]} 14... Qb6 {[%clk 0:02:43.6]} 15. Bh3 {[%clk
0:02:21.4]} 15... Bc5 {[%clk 0:02:24.8]} 16. e3 {[%clk 0:02:21.5]} 16... Bd6
{[%clk 0:02:20.4]} 17. Nd4 {[%clk 0:02:08.5]} 17... Ne5 {[%clk 0:02:17.3]} 18.
Bf5 {[%clk 0:02:01.5]} 18... Bxf5 {[%clk 0:02:07.6]} 19. Nxf5 {[%clk 0:02:01.7]}
19... Bf8 {[%clk 0:02:07.4]} 20. Kg2 {[%clk 0:01:59.9]} 20... g6 {[%clk
0:02:06]} 21. Nh4 {[%clk 0:01:56.4]} 21... Bg7 {[%clk 0:02:04.7]} 22. e4 {[%clk
0:01:28.3]} 22... Nfg4 {[%clk 0:01:49]} 23. d4 {[%clk 0:01:06.7]} 23... Nd7
{[%clk 0:01:12.7]} 24. h3 {[%clk 0:00:57]} 24... Nxf2 {[%clk 0:00:55.5]} 25.
Kxf2 {[%clk 0:00:57.3]} 25... Bxd4+ {[%clk 0:00:55.8]} 26. Kg2 {[%clk
0:00:57.8]} 26... Bxb2 {[%clk 0:00:50.1]} 27. Qxb2 {[%clk 0:00:57.5]} 27... Nc5
{[%clk 0:00:50.5]} 28. Qd4 {[%clk 0:00:57.1]} 28... Nd7 {[%clk 0:00:40.4]} 29.
Qxb6 {[%clk 0:00:56.9]} 29... Nxb6 {[%clk 0:00:41.3]} 30. Nhf3 {[%clk
0:00:52.2]} 30... dxe4 {[%clk 0:00:38]} 31. Nxe4 {[%clk 0:00:52]} 31... Nd5
{[%clk 0:00:37.5]} 32. Nd6 {[%clk 0:00:50.4]} 32... Rxe1 {[%clk 0:00:33.8]} 33.
Rxe1 {[%clk 0:00:50.7]} 33... Rb8 {[%clk 0:00:32.3]} 34. Ne5 {[%clk 0:00:50.5]}
34... Rf8 {[%clk 0:00:21.1]} 35. Nxb7 {[%clk 0:00:48.9]} 35... Re8 {[%clk
0:00:18]} 36. Nxa5 {[%clk 0:00:43.9]} 36... c5 {[%clk 0:00:12]} 37. Kf2 {[%clk
0:00:40.9]} 37... Ra8 {[%clk 0:00:09.9]} 38. Nac4 {[%clk 0:00:39.8]} 38... Rb8
{[%clk 0:00:09.9]} 39. Nd2 {[%clk 0:00:38]} 39... Ra8 {[%clk 0:00:08.4]} 40.
Nec4 {[%clk 0:00:37.9]} 1-0

[Event "*** Titled Tuesday Blitz"]
[Site "Chess.com"]
[Date "2020.05.19"]
[Round "3"]
[White "Isajevsky_Anton"]
[Black "Zurability"]
[Result "0-1"]
[WhiteElo "2411"]
[BlackElo "2696"]
[TimeControl "180+1"]
[EndTime "12:28:54 PDT"]
[Termination "Zurability won by resignation"]

1. c4 {[%clk 0:03:00.9]} 1... e5 {[%clk 0:02:59.4]} 2. g3 {[%clk 0:03:01]} 2...
Nc6 {[%clk 0:02:55.3]} 3. Bg2 {[%clk 0:03:00.6]} 3... Bc5 {[%clk 0:02:55]} 4.
Nc3 {[%clk 0:02:58]} 4... d6 {[%clk 0:02:53.2]} 5. d3 {[%clk 0:02:54.7]} 5...
Nf6 {[%clk 0:02:46.7]} 6. Nf3 {[%clk 0:02:53]} 6... h6 {[%clk 0:02:44.1]} 7. O-O
{[%clk 0:02:51.7]} 7... a6 {[%clk 0:02:40.4]} 8. e3 {[%clk 0:02:50.1]} 8... O-O
{[%clk 0:02:39.3]} 9. a3 {[%clk 0:02:45.1]} 9... Ba7 {[%clk 0:02:38.2]} 10. b4
{[%clk 0:02:44.7]} 10... Ne7 {[%clk 0:02:25.2]} 11. Bb2 {[%clk 0:02:39]} 11...
Ng6 {[%clk 0:02:21]} 12. Rc1 {[%clk 0:02:35.9]} 12... c6 {[%clk 0:02:17.5]} 13.
Ne4 {[%clk 0:02:21.5]} 13... Ne8 {[%clk 0:02:08]} 14. c5 {[%clk 0:01:32.7]}
14... d5 {[%clk 0:02:07.9]} 15. Ned2 {[%clk 0:01:32.8]} 15... Bb8 {[%clk
0:02:06]} 16. e4 {[%clk 0:01:32.9]} 16... Nf6 {[%clk 0:01:57.3]} 17. Re1 {[%clk
0:01:28.8]} 17... Re8 {[%clk 0:01:57.4]} 18. d4 {[%clk 0:01:05.6]} 18... exd4
{[%clk 0:01:09.5]} 19. Nxd4 {[%clk 0:01:00]} 19... Bg4 {[%clk 0:01:06.6]} 20.
Qc2 {[%clk 0:00:55]} 20... dxe4 {[%clk 0:01:01.7]} 21. Nxe4 {[%clk 0:00:54.1]}
21... Be5 {[%clk 0:01:00.5]} 22. Nxf6+ {[%clk 0:00:23.7]} 22... Qxf6 {[%clk
0:00:59.7]} 23. h3 {[%clk 0:00:16.5]} 23... Bxd4 {[%clk 0:00:46.7]} 24. Bxd4
{[%clk 0:00:15.6]} 24... Qxd4 {[%clk 0:00:46.8]} 25. hxg4 {[%clk 0:00:16.2]}
25... Qxg4 {[%clk 0:00:45.8]} 26. Rcd1 {[%clk 0:00:14.1]} 26... h5 {[%clk
0:00:42.9]} 27. Kh2 {[%clk 0:00:07.5]} 27... h4 {[%clk 0:00:42.4]} 28. Bh3
{[%clk 0:00:05.6]} 28... Qg5 {[%clk 0:00:39.9]} 29. Qc3 {[%clk 0:00:03.3]} 29...
hxg3+ {[%clk 0:00:31.9]} 30. Qxg3 {[%clk 0:00:03.1]} 30... Qf6 {[%clk
0:00:29.1]} 31. Kg1 {[%clk 0:00:03.1]} 31... Nf4 {[%clk 0:00:28.3]} 32. Bf1
{[%clk 0:00:03.4]} 32... g6 {[%clk 0:00:22.9]} 33. Re3 {[%clk 0:00:02.4]} 33...
Nh5 {[%clk 0:00:20.6]} 34. Qg4 {[%clk 0:00:01.7]} 34... Rxe3 {[%clk 0:00:20.5]}
35. fxe3 {[%clk 0:00:02.6]} 35... Re8 {[%clk 0:00:20.9]} 36. e4 {[%clk
0:00:02.8]} 36... Nf4 {[%clk 0:00:19.9]} 37. Qf3 {[%clk 0:00:02]} 37... Qg5+
{[%clk 0:00:20.1]} 38. Kf2 {[%clk 0:00:02.3]} 38... Qh4+ {[%clk 0:00:20.1]} 39.
Qg3 {[%clk 0:00:02.8]} 39... Qf6 {[%clk 0:00:16.5]} 40. Kg1 {[%clk 0:00:03.4]}
40... Rxe4 {[%clk 0:00:16.1]} 41. Bg2 {[%clk 0:00:03.6]} 41... Ne2+ {[%clk
0:00:16.3]} 0-1

[Event "*** Titled Tuesday Blitz"]
[Site "Chess.com"]
[Date "2020.05.19"]
[Round "3"]
[White "nihalsarin"]
[Black "LaStreetCmaMaison"]
[Result "1-0"]
[WhiteElo "3013"]
[BlackElo "2585"]
[TimeControl "180+1"]
[EndTime "12:28:54 PDT"]
[Termination "nihalsarin won on time"]

1. f4 {[%clk 0:03:00.9]} 1... Nf6 {[%clk 0:02:55.7]} 2. Nf3 {[%clk 0:02:59.8]}
2... g6 {[%clk 0:02:55.4]} 3. Nc3 {[%clk 0:02:58.5]} 3... Bg7 {[%clk 0:02:56]}
4. e4 {[%clk 0:02:58.6]} 4... d6 {[%clk 0:02:52.4]} 5. d4 {[%clk 0:02:58.5]}
5... O-O {[%clk 0:02:52.5]} 6. e5 {[%clk 0:02:53.8]} 6... dxe5 {[%clk
0:02:48.8]} 7. fxe5 {[%clk 0:02:54.7]} 7... Nd5 {[%clk 0:02:48.2]} 8. Bc4 {[%clk
0:02:55.3]} 8... Be6 {[%clk 0:02:37.1]} 9. Nxd5 {[%clk 0:02:55.3]} 9... Bxd5
{[%clk 0:02:37]} 10. Bxd5 {[%clk 0:02:56.2]} 10... Qxd5 {[%clk 0:02:37.6]} 11.
Qe2 {[%clk 0:02:57.1]} 11... b5 {[%clk 0:01:54.6]} 12. O-O {[%clk 0:02:36.5]}
12... a6 {[%clk 0:01:43.7]} 13. Bg5 {[%clk 0:02:24.3]} 13... f6 {[%clk
0:01:35.1]} 14. Bf4 {[%clk 0:02:13.7]} 14... c5 {[%clk 0:01:33.2]} 15. Rad1
{[%clk 0:02:02.8]} 15... Nc6 {[%clk 0:01:27.8]} 16. dxc5 {[%clk 0:01:41.8]}
16... Qxc5+ {[%clk 0:01:13.3]} 17. Be3 {[%clk 0:01:41.8]} 17... Qb4 {[%clk
0:01:07.4]} 18. c3 {[%clk 0:01:41.8]} 18... Qe4 {[%clk 0:01:07.1]} 19. exf6
{[%clk 0:01:34.7]} 19... exf6 {[%clk 0:01:05]} 20. Qf2 {[%clk 0:01:34.3]} 20...
Rfe8 {[%clk 0:00:49.3]} 21. Rfe1 {[%clk 0:01:30.6]} 21... Rad8 {[%clk
0:00:47.9]} 22. Rxd8 {[%clk 0:01:25]} 22... Nxd8 {[%clk 0:00:48]} 23. Bd2 {[%clk
0:00:49.5]} 23... Qc6 {[%clk 0:00:47.2]} 24. Rxe8+ {[%clk 0:00:50.4]} 24... Qxe8
{[%clk 0:00:46.8]} 25. Qb6 {[%clk 0:00:51.3]} 25... Bf8 {[%clk 0:00:41.3]} 26.
Qxf6 {[%clk 0:00:40.5]} 26... Bc5+ {[%clk 0:00:32]} 27. Kf1 {[%clk 0:00:40.4]}
27... Qd7 {[%clk 0:00:24.1]} 28. Ke2 {[%clk 0:00:31.5]} 28... Nf7 {[%clk
0:00:23.7]} 29. Qxa6 {[%clk 0:00:28.4]} 29... Qe8+ {[%clk 0:00:22.4]} 30. Kd1
{[%clk 0:00:28.5]} 30... Nd6 {[%clk 0:00:18.4]} 31. b4 {[%clk 0:00:16.5]} 31...
Qe4 {[%clk 0:00:05.9]} 32. bxc5 {[%clk 0:00:15.1]} 32... Qb1+ {[%clk 0:00:06.1]}
33. Ke2 {[%clk 0:00:14.6]} 33... Qe4+ {[%clk 0:00:05.5]} 34. Kf2 {[%clk
0:00:15.1]} 34... Nc4 {[%clk 0:00:02.4]} 35. Qxb5 {[%clk 0:00:14.2]} 35... Qd3
{[%clk 0:00:02.5]} 36. Qe8+ {[%clk 0:00:13.6]} 36... Kg7 {[%clk 0:00:02.8]} 37.
Qe2 {[%clk 0:00:14.4]} 37... Qd5 {[%clk 0:00:02.6]} 38. Be3 {[%clk 0:00:14.9]}
38... Ne5 {[%clk 0:00:02.3]} 39. Bd4 {[%clk 0:00:15.8]} 1-0

[Event "*** Titled Tuesday Blitz"]
[Site "Chess.com"]
[Date "2020.05.19"]
[Round "3"]
[White "silverback96"]
[Black "BanjoKazooieN64"]
[Result "0-1"]
[WhiteElo "2321"]
[BlackElo "2539"]
[TimeControl "180+1"]
[EndTime "12:28:54 PDT"]
[Termination "BanjoKazooieN64 won by resignation"]

1. d4 {[%clk 0:02:56.7]} 1... d5 {[%clk 0:02:15.3]} 2. c4 {[%clk 0:02:54.8]}
2... e6 {[%clk 0:02:15.7]} 3. Nf3 {[%clk 0:02:55]} 3... Nf6 {[%clk 0:02:16.1]}
4. g3 {[%clk 0:02:55.7]} 4... dxc4 {[%clk 0:02:15.8]} 5. Bg2 {[%clk 0:02:55.6]}
5... Nc6 {[%clk 0:02:16.1]} 6. Qa4 {[%clk 0:02:53.1]} 6... Nd7 {[%clk 0:02:15]}
7. Qxc4 {[%clk 0:02:51.3]} 7... Nb6 {[%clk 0:02:15.3]} 8. Qd3 {[%clk 0:02:50.3]}
8... e5 {[%clk 0:02:15]} 9. Nxe5 {[%clk 0:02:32.7]} 9... Nb4 {[%clk 0:02:14.9]}
10. Qc3 {[%clk 0:01:52.3]} 10... Qxd4 {[%clk 0:02:14.8]} 11. O-O {[%clk
0:01:51.7]} 11... Qxc3 {[%clk 0:02:13.7]} 12. Nxc3 {[%clk 0:01:51.7]} 12... Bd6
{[%clk 0:02:13.8]} 13. Bf4 {[%clk 0:01:36.4]} 13... O-O {[%clk 0:02:12.5]} 14.
Rac1 {[%clk 0:01:24.8]} 14... Re8 {[%clk 0:02:12.4]} 15. a3 {[%clk 0:01:23]}
15... Bxe5 {[%clk 0:02:09.9]} 16. Bxe5 {[%clk 0:01:22.7]} 16... Rxe5 {[%clk
0:02:10.8]} 17. axb4 {[%clk 0:01:23]} 17... c6 {[%clk 0:02:11.3]} 18. f4 {[%clk
0:01:16.9]} 18... Re7 {[%clk 0:02:05.8]} 19. b5 {[%clk 0:01:17]} 19... Bd7
{[%clk 0:01:55.5]} 20. bxc6 {[%clk 0:01:16.5]} 20... Bxc6 {[%clk 0:01:56.4]} 21.
Bxc6 {[%clk 0:01:16]} 21... bxc6 {[%clk 0:01:57.3]} 22. e4 {[%clk 0:01:14.9]}
22... Nc4 {[%clk 0:01:53.5]} 23. b3 {[%clk 0:01:09.4]} 23... Nd2 {[%clk
0:01:52.6]} 24. Rfe1 {[%clk 0:01:09.3]} 24... Nf3+ {[%clk 0:01:52.7]} 25. Kf2
{[%clk 0:01:08.8]} 25... Nxe1 {[%clk 0:01:53.1]} 26. Rxe1 {[%clk 0:01:09.4]}
26... Rb8 {[%clk 0:01:53.6]} 27. Rd1 {[%clk 0:00:59]} 27... g6 {[%clk
0:01:52.5]} 28. e5 {[%clk 0:00:58.4]} 28... Reb7 {[%clk 0:01:29.7]} 29. Ne4
{[%clk 0:00:53.5]} 29... Rxb3 {[%clk 0:01:28.8]} 30. Rd6 {[%clk 0:00:50.5]}
30... Ra3 {[%clk 0:01:21.2]} 31. Kg2 {[%clk 0:00:48.4]} 31... h5 {[%clk
0:01:16.9]} 32. Nf6+ {[%clk 0:00:46]} 32... Kg7 {[%clk 0:01:16.8]} 33. Rxc6
{[%clk 0:00:44.4]} 33... Rb2+ {[%clk 0:01:13]} 34. Kh3 {[%clk 0:00:39]} 34...
Raa2 {[%clk 0:01:10.5]} 35. g4 {[%clk 0:00:39.3]} 35... Rxh2+ {[%clk 0:01:03.9]}
36. Kg3 {[%clk 0:00:38.3]} 36... Rhg2+ {[%clk 0:01:00.8]} 37. Kf3 {[%clk
0:00:37.9]} 37... hxg4+ {[%clk 0:01:01]} 38. Nxg4 {[%clk 0:00:38.8]} 38... Rgc2
{[%clk 0:00:57.9]} 39. Rd6 {[%clk 0:00:32.8]} 39... Rc3+ {[%clk 0:00:58.2]} 40.
Ke4 {[%clk 0:00:32.3]} 40... Ra4+ {[%clk 0:00:58.5]} 41. Kd5 {[%clk 0:00:30.8]}
41... Rxf4 {[%clk 0:00:57.6]} 42. Nf6 {[%clk 0:00:28.3]} 42... Rd3+ {[%clk
0:00:57.8]} 43. Kc5 {[%clk 0:00:28.7]} 43... Rxd6 {[%clk 0:00:57.9]} 44. Ne8+
{[%clk 0:00:29.1]} 44... Kf8 {[%clk 0:00:57.4]} 45. Nxd6 {[%clk 0:00:28.9]}
45... Ke7 {[%clk 0:00:57]} 46. Kd5 {[%clk 0:00:27.5]} 46... a5 {[%clk
0:00:53.8]} 47. Nc8+ {[%clk 0:00:25.5]} 47... Kd8 {[%clk 0:00:52.9]} 48. Na7
{[%clk 0:00:24.4]} 48... a4 {[%clk 0:00:52]} 49. Nc6+ {[%clk 0:00:25.3]} 49...
Kc7 {[%clk 0:00:50.3]} 50. Nd4 {[%clk 0:00:22]} 50... Rxd4+ {[%clk 0:00:49.2]}
51. Kxd4 {[%clk 0:00:22.9]} 51... Kd7 {[%clk 0:00:49.8]} 52. Kc3 {[%clk
0:00:23.8]} 52... Ke6 {[%clk 0:00:50.3]} 53. Kb4 {[%clk 0:00:24.7]} 53... Kxe5
{[%clk 0:00:51.2]} 54. Kxa4 {[%clk 0:00:25.6]} 0-1

[Event "*** Titled Tuesday Blitz"]
[Site "Chess.com"]
[Date "2020.05.19"]
[Round "3"]
[White "Hangar-18"]
[Black "petrkostenko"]
[Result "0-1"]
[WhiteElo "2314"]
[BlackElo "2537"]
[TimeControl "180+1"]
[EndTime "12:28:54 PDT"]
[Termination "petrkostenko won by checkmate"]

1. b3 {[%clk 0:03:00]} 1... b5 {[%clk 0:02:51.2]} 2. Bb2 {[%clk 0:03:00.9]} 2...
Bb7 {[%clk 0:02:50.9]} 3. Nf3 {[%clk 0:03:01.5]} 3... Nf6 {[%clk 0:02:50.3]} 4.
e3 {[%clk 0:03:01.7]} 4... b4 {[%clk 0:02:49.6]} 5. c4 {[%clk 0:03:01.4]} 5...
bxc3 {[%clk 0:02:49]} 6. Nxc3 {[%clk 0:03:01.9]} 6... e6 {[%clk 0:02:41.9]} 7.
d4 {[%clk 0:03:02.3]} 7... d5 {[%clk 0:02:40.9]} 8. Be2 {[%clk 0:03:01.5]} 8...
Nbd7 {[%clk 0:02:41.2]} 9. O-O {[%clk 0:03:02.4]} 9... Be7 {[%clk 0:02:40.2]}
10. Rc1 {[%clk 0:03:03]} 10... O-O {[%clk 0:02:34.7]} 11. Na4 {[%clk 0:03:03.6]}
11... Rc8 {[%clk 0:02:31.4]} 12. Qc2 {[%clk 0:03:00.5]} 12... Ne4 {[%clk
0:02:22.8]} 13. Nd2 {[%clk 0:02:53.9]} 13... c5 {[%clk 0:02:08.4]} 14. Nxe4
{[%clk 0:02:48.6]} 14... cxd4 {[%clk 0:01:51.7]} 15. Qb1 {[%clk 0:02:48.9]}
15... dxe4 {[%clk 0:01:48.7]} 16. Bxd4 {[%clk 0:02:48.8]} 16... Qa5 {[%clk
0:01:41.2]} 17. Rxc8 {[%clk 0:02:37.4]} 17... Rxc8 {[%clk 0:01:40.2]} 18. Qb2
{[%clk 0:02:10.1]} 18... Bf6 {[%clk 0:00:54.3]} 19. h3 {[%clk 0:01:55.9]} 19...
h5 {[%clk 0:00:52.8]} 20. Rd1 {[%clk 0:01:44.7]} 20... h4 {[%clk 0:00:46]} 21.
Bc4 {[%clk 0:01:30.3]} 21... Ne5 {[%clk 0:00:44.1]} 22. Be2 {[%clk 0:01:24.1]}
22... Nd7 {[%clk 0:00:41.7]} 23. Bxf6 {[%clk 0:01:18.2]} 23... Nxf6 {[%clk
0:00:40.2]} 24. Qd4 {[%clk 0:01:18.8]} 24... Bc6 {[%clk 0:00:30.9]} 25. Rc1
{[%clk 0:00:38.5]} 25... Rd8 {[%clk 0:00:30.2]} 26. Rc5 {[%clk 0:00:38.4]} 26...
Rxd4 {[%clk 0:00:23.5]} 27. Rxa5 {[%clk 0:00:38.7]} 27... Rd2 {[%clk 0:00:19.7]}
28. Bc4 {[%clk 0:00:38.2]} 28... Bd5 {[%clk 0:00:18]} 29. Bxd5 {[%clk
0:00:19.1]} 29... exd5 {[%clk 0:00:18]} 30. Nc3 {[%clk 0:00:17.4]} 30... g5
{[%clk 0:00:15.9]} 31. Nb5 {[%clk 0:00:16.3]} 31... g4 {[%clk 0:00:15]} 32. hxg4
{[%clk 0:00:16.5]} 32... Nxg4 {[%clk 0:00:14.4]} 33. Nd4 {[%clk 0:00:16.9]}
33... Rd1# {[%clk 0:00:14.4]} 0-1

[Event "*** Titled Tuesday Blitz"]
[Site "Chess.com"]
[Date "2020.05.19"]
[Round "3"]
[White "imdarealist"]
[Black "vova-79"]
[Result "1-0"]
[WhiteElo "2236"]
[BlackElo "2421"]
[TimeControl "180+1"]
[EndTime "12:28:54 PDT"]
[Termination "imdarealist won by resignation"]

1. d4 {[%clk 0:03:00.9]} 1... d5 {[%clk 0:02:59.4]} 2. Bf4 {[%clk 0:02:59.6]}
2... Nf6 {[%clk 0:02:58.6]} 3. e3 {[%clk 0:02:59.3]} 3... c5 {[%clk 0:02:59]} 4.
c3 {[%clk 0:02:59.5]} 4... Nc6 {[%clk 0:02:59.4]} 5. Nd2 {[%clk 0:02:57]} 5...
cxd4 {[%clk 0:02:58.8]} 6. exd4 {[%clk 0:02:56.8]} 6... Bf5 {[%clk 0:02:59.3]}
7. Qb3 {[%clk 0:02:55]} 7... Qc8 {[%clk 0:02:58.7]} 8. Ngf3 {[%clk 0:02:51.6]}
8... e6 {[%clk 0:02:58.8]} 9. Be2 {[%clk 0:02:45]} 9... Be7 {[%clk 0:02:58.2]}
10. Nh4 {[%clk 0:02:43.3]} 10... Be4 {[%clk 0:02:57.3]} 11. Nxe4 {[%clk
0:02:37.7]} 11... dxe4 {[%clk 0:02:58.2]} 12. g3 {[%clk 0:02:32.9]} 12... O-O
{[%clk 0:02:53.7]} 13. Ng2 {[%clk 0:02:30.5]} 13... Qd7 {[%clk 0:02:52.5]} 14.
O-O {[%clk 0:02:21.8]} 14... a6 {[%clk 0:02:51.2]} 15. a4 {[%clk 0:02:20.5]}
15... Na5 {[%clk 0:02:48.5]} 16. Qc2 {[%clk 0:02:15.6]} 16... b5 {[%clk
0:02:40.5]} 17. axb5 {[%clk 0:01:54.6]} 17... axb5 {[%clk 0:02:41.4]} 18. Rad1
{[%clk 0:01:52.6]} 18... Rac8 {[%clk 0:02:37.3]} 19. Rfe1 {[%clk 0:01:47.2]}
19... Rfd8 {[%clk 0:02:27.6]} 20. Bf1 {[%clk 0:01:43.3]} 20... h6 {[%clk
0:02:22.4]} 21. Bc1 {[%clk 0:01:11.3]} 21... Qb7 {[%clk 0:01:55.5]} 22. Ne3
{[%clk 0:01:01.9]} 22... b4 {[%clk 0:01:51.6]} 23. c4 {[%clk 0:00:51.6]} 23...
b3 {[%clk 0:01:50.8]} 24. Qe2 {[%clk 0:00:52]} 24... Bb4 {[%clk 0:01:47.4]} 25.
Bd2 {[%clk 0:00:45.3]} 25... Nc6 {[%clk 0:01:40.8]} 26. Bc3 {[%clk 0:00:40.2]}
26... e5 {[%clk 0:01:22.5]} 27. dxe5 {[%clk 0:00:25.1]} 27... Bxc3 {[%clk
0:01:21.5]} 28. exf6 {[%clk 0:00:17.5]} 28... Bxf6 {[%clk 0:01:19.1]} 29. Rxd8+
{[%clk 0:00:15.4]} 29... Rxd8 {[%clk 0:01:15.5]} 30. Nd5 {[%clk 0:00:16.3]}
30... Nd4 {[%clk 0:01:12.7]} 31. Qxe4 {[%clk 0:00:14.9]} 31... Qa6 {[%clk
0:00:54.6]} 32. Nxf6+ {[%clk 0:00:15]} 32... Qxf6 {[%clk 0:00:54.4]} 33. Bg2
{[%clk 0:00:14.4]} 33... Nc2 {[%clk 0:00:50]} 34. Rb1 {[%clk 0:00:10.4]} 34...
g6 {[%clk 0:00:47.4]} 35. c5 {[%clk 0:00:10.3]} 35... Rd4 {[%clk 0:00:43.9]} 36.
Qf3 {[%clk 0:00:09.8]} 36... Qa6 {[%clk 0:00:34.8]} 37. c6 {[%clk 0:00:09.5]}
37... Qa2 {[%clk 0:00:34.4]} 38. Rd1 {[%clk 0:00:06.1]} 38... Qxb2 {[%clk
0:00:27.6]} 39. c7 {[%clk 0:00:06]} 39... Qc3 {[%clk 0:00:23.2]} 40. Qxc3 {[%clk
0:00:06]} 40... Rxd1+ {[%clk 0:00:21.6]} 41. Bf1 {[%clk 0:00:06.4]} 41... b2
{[%clk 0:00:15.9]} 42. c8=Q+ {[%clk 0:00:06.4]} 1-0

[Event "*** Titled Tuesday Blitz"]
[Site "Chess.com"]
[Date "2020.05.19"]
[Round "3"]
[White "santosalberto1987"]
[Black "grandcoach"]
[Result "1-0"]
[WhiteElo "2467"]
[BlackElo "2059"]
[TimeControl "180+1"]
[EndTime "12:28:55 PDT"]
[Termination "santosalberto1987 won by resignation"]

1. e4 {[%clk 0:03:00]} 1... c5 {[%clk 0:02:58.5]} 2. Nf3 {[%clk 0:02:59.6]} 2...
e6 {[%clk 0:02:57.5]} 3. g3 {[%clk 0:02:57.4]} 3... Nc6 {[%clk 0:02:56.2]} 4.
Bg2 {[%clk 0:02:57.2]} 4... Nf6 {[%clk 0:02:41.9]} 5. Qe2 {[%clk 0:02:55.9]}
5... Be7 {[%clk 0:02:36.1]} 6. O-O {[%clk 0:02:55.6]} 6... O-O {[%clk
0:02:35.5]} 7. c3 {[%clk 0:02:54.5]} 7... b6 {[%clk 0:02:22.7]} 8. d4 {[%clk
0:02:54.3]} 8... cxd4 {[%clk 0:02:05.7]} 9. cxd4 {[%clk 0:02:55.2]} 9... Nb4
{[%clk 0:02:05.2]} 10. Rd1 {[%clk 0:02:34.4]} 10... Ba6 {[%clk 0:02:04.4]} 11.
Qd2 {[%clk 0:02:14.3]} 11... Nxe4 {[%clk 0:02:02.5]} 12. Qe3 {[%clk 0:02:14.6]}
12... d5 {[%clk 0:01:58.8]} 13. Na3 {[%clk 0:02:14.5]} 13... Rc8 {[%clk
0:01:52.1]} 14. Bd2 {[%clk 0:02:12]} 14... Nd3 {[%clk 0:01:26.4]} 15. Bf1 {[%clk
0:01:49.8]} 15... Ndxf2 {[%clk 0:01:19.5]} 16. Bxa6 {[%clk 0:01:48.2]} 16...
Nxd1 {[%clk 0:01:17.9]} 17. Rxd1 {[%clk 0:01:48.6]} 17... Rc7 {[%clk 0:00:59.3]}
18. Bd3 {[%clk 0:01:48.1]} 18... f5 {[%clk 0:00:57.1]} 19. Nb5 {[%clk
0:01:47.6]} 19... Rc8 {[%clk 0:00:50.1]} 20. Nxa7 {[%clk 0:01:40.4]} 20... Ra8
{[%clk 0:00:49.6]} 21. Nc6 {[%clk 0:01:40.3]} 21... Qc7 {[%clk 0:00:48]} 22.
Nxe7+ {[%clk 0:01:38.1]} 22... Qxe7 {[%clk 0:00:48.9]} 23. a3 {[%clk 0:01:37.2]}
23... f4 {[%clk 0:00:48.3]} 24. gxf4 {[%clk 0:01:32.3]} 24... Qf6 {[%clk
0:00:45.9]} 25. Bxe4 {[%clk 0:01:30.1]} 25... dxe4 {[%clk 0:00:46.7]} 26. Qxe4
{[%clk 0:01:30.3]} 26... Rad8 {[%clk 0:00:39.1]} 27. Be3 {[%clk 0:01:28.4]}
27... Rd5 {[%clk 0:00:37.7]} 28. Ne5 {[%clk 0:01:27.7]} 28... Qh4 {[%clk
0:00:30]} 29. Kh1 {[%clk 0:01:23.5]} 29... Qh5 {[%clk 0:00:22.5]} 30. Rg1 {[%clk
0:01:22.2]} 30... Rc8 {[%clk 0:00:19.8]} 31. Ng4 {[%clk 0:01:13.9]} 31... Kh8
{[%clk 0:00:18.3]} 32. Qxe6 {[%clk 0:01:11.6]} 32... Re8 {[%clk 0:00:17.1]} 33.
Qc6 {[%clk 0:00:24.9]} 33... Rdd8 {[%clk 0:00:15]} 34. Qf3 {[%clk 0:00:22.5]}
34... Rc8 {[%clk 0:00:13.3]} 35. Bf2 {[%clk 0:00:21.6]} 35... Rc2 {[%clk
0:00:12.3]} 36. Qg3 {[%clk 0:00:20.2]} 36... Ree2 {[%clk 0:00:09.2]} 37. Ne5
{[%clk 0:00:20.1]} 37... Qh6 {[%clk 0:00:07.2]} 38. Nf7+ {[%clk 0:00:19.6]} 1-0